fUSD/lending_fUSD_20260307
["ID","MTS","AMOUNT","RATE_DAILY","PERIOD"]
[407928904,1772922648036,-304.243111,0.0002,10]
[407928905,1772922648048,-151.0,0.0002,2]
[407928906,1772922648059,-151.0,0.0002,2]
[407928907,1772922648073,-151.0,0.0002,2]
[407928908,1772922648084,-151.0,0.0002,2]
[407928909,1772922648093,-151.0,0.0002,2]
[407928910,1772922648103,-151.0,0.0002,2]
[407928911,1772922648112,-151.0,0.0002,2]
[407928912,1772922648122,-151.0,0.0002,2]
[407928913,1772922648131,-151.0,0.0002,2]
[407928914,1772922648141,-223.4324,0.0002,2]
[407928915,1772922648150,-180.353797,0.0002,2]
[407928916,1772922648159,-190.64,0.0002,2]
[407928917,1772922648168,-304.0,0.0002,2]
[407928918,1772922648178,-823.39720312,0.0002,2]
[407928919,1772922648188,-823.39720312,0.0002,2]
[407928920,1772922648197,-151.0,0.0002,2]
[407928921,1772922648207,-151.0,0.0002,2]
[407928922,1772922648219,-151.0,0.0002,2]
[407928923,1772922648231,-151.0,0.0002,2]
[407928924,1772922648240,-151.0,0.0002,2]
[407928925,1772922648251,-151.0,0.0002,2]
[407928926,1772922648264,-151.0,0.0002,2]
[407928927,1772922648274,-151.0,0.0002,2]
[407928928,1772922648283,-151.0,0.0002,2]
[407928929,1772922648293,-151.0,0.0002,2]
[407928930,1772922648303,-151.0,0.0002,2]
[407928931,1772922648312,-151.0,0.0002,2]
[407928932,1772922648322,-151.0,0.0002,2]
[407928933,1772922648331,-151.0,0.0002,2]
[407928934,1772922648342,-151.0,0.0002,2]
[407928935,1772922648352,-221.835589,0.0002,2]
[407928936,1772922648362,-200.0,0.0002,2]
[407928937,1772922648372,-151.0,0.0002,2]
[407928938,1772922648382,-151.0,0.0002,2]
[407928939,1772922648393,-151.0,0.0002,2]
[407928940,1772922648403,-151.0,0.0002,2]
[407928941,1772922648413,-151.0,0.0002,2]
[407928942,1772922648423,-151.0,0.0002,2]
[407928943,1772922648433,-151.0,0.0002,2]
[407928944,1772922648443,-151.0,0.0002,2]
[407928945,1772922648457,-151.0,0.0002,2]
[407928946,1772922648468,-196.783122,0.0002,2]
[407928947,1772922648479,-151.0,0.0002,2]
[407928948,1772922648490,-151.0,0.0002,2]
[407928949,1772922648500,-151.0,0.0002,2]
[407928950,1772922648509,-151.0,0.0002,2]
[407928951,1772922648520,-151.0,0.0002,2]
[407928952,1772922648530,-151.0,0.0002,2]
[407928953,1772922648541,-151.0,0.0002,2]
[407928954,1772922648551,-151.0,0.0002,2]
[407928955,1772922648561,-232.873682,0.0002,2]
[407928956,1772922648572,-151.0,0.0002,2]
[407928957,1772922648582,-151.0,0.0002,2]
[407928958,1772922648592,-151.0,0.0002,2]
[407928959,1772922648602,-151.0,0.0002,2]
[407928960,1772922648613,-151.0,0.0002,2]
[407928961,1772922648622,-254.375231,0.0002,2]
[407928962,1772922648633,-994.0,0.0002,2]
[407928963,1772922648644,-223.47137865,0.0002,2]
[407928964,1772922648654,-893.0,0.00020004,2]
[407928965,1772922648664,-2000.0,0.0002001,2]
[407928966,1772922648675,-2000.0,0.0002001,2]
[407928967,1772922648687,-180.56,0.00020012,2]
[407928968,1772922648697,-1600.0,0.00020013,2]
[407928969,1772922648708,-500.0,0.0002002,7]
[407928970,1772922648718,-2000.0,0.0002002,2]
[407928971,1772922648727,-2000.0,0.0002002,2]
[407928972,1772922648737,-155.0,0.00020023,2]
[407928973,1772922648747,-2448.577916,0.0002003,2]
[407928974,1772922648756,-2730.19718,0.0002003,2]
[407928975,1772922648766,-489.42,0.0002006,2]
[407928976,1772922648775,-374.51,0.00020102,14]
[407928977,1772922648785,-224.7,0.00020102,14]
[407928978,1772922648794,-418.0,0.00020106,2]
[407928979,1772922648804,-1333.33333,0.000202,2]
[407928980,1772922648813,-200.0,0.000202,2]
[407928981,1772922648823,-1000.0,0.00020274,7]
[407928982,1772922648836,-2200.0,0.00020274,7]
[407928983,1772922648846,-2200.0,0.00020274,7]
[407928984,1772922648856,-166.66,0.00020279,2]
[407928985,1772922648865,-168.0,0.00020315,2]
[407928986,1772922648875,-489.42,0.0002033,2]
[407928987,1772922648885,-224.85410356,0.00020361,2]
[407928988,1772922648895,-500.0,0.00020369,2]
[407928989,1772922648905,-194.72792766,0.00020369,2]
[407928990,1772922648915,-273.36258448,0.00020369,2]
[407928991,1772922648924,-200.0,0.00020369,2]
[407928992,1772922648934,-1109.0,0.00020385,2]
[407928993,1772922648943,-238.12,0.0002039,2]
[407928994,1772922648953,-1333.33334,0.000204,2]
[407928995,1772922648963,-500.0,0.00020421,2]
[407928996,1772922648973,-500.0,0.00020421,2]
[407928997,1772922648983,-893.0,0.00020452,2]
[407928998,1772922648993,-200.0,0.000205,5]
[407928999,1772922649004,-418.0,0.00020518,2]
[407929000,1772922649014,-823.0,0.00020537,2]
[407929001,1772922649025,-750.0,0.00020541,2]
[407929002,1772922649034,-150.0,0.00020541,2]
[407929003,1772922649045,-299.0,0.00020541,2]
[407929004,1772922649055,-448.0,0.00020545,2]
[407929005,1772922649064,-21637.5,0.00020548,2]
[407929006,1772922649073,-283.73,0.00020548,14]
[407929007,1772922649083,-275.07,0.00020548,14]
[407929008,1772922649092,-215.64,0.00020548,14]
[407929009,1772922649103,-925.51,0.00020588,14]
[407929010,1772922649113,-200.5,0.00020588,14]
[407929011,1772922649122,-209.66,0.00020588,14]
[407929012,1772922649132,-248.04247585,0.00020599,3]
[407929013,1772922649142,-1333.33333,0.000206,2]
[407929014,1772922649153,-489.42,0.000206,2]
[407929015,1772922649162,-418.0,0.00020631,2]
[407929016,1772922649172,-773.0,0.00020669,2]
[407929017,1772922649181,-792.08,0.00020673,2]
[407929018,1772922649191,-150.0,0.00020673,2]
[407929019,1772922649201,-350.0,0.00020723,2]
[407929020,1772922649214,-307.0,0.00020756,2]
[407929021,1772922649224,-1452.03,0.00020756,2]
[407929022,1772922649233,-290.5,0.00020756,2]
[407929023,1772922649243,-1105.45,0.00020762,2]
[407929024,1772922649252,-251.65,0.00020762,2]
[407929025,1772922649264,-1333.33333,0.000208,2]
[407929026,1772922649274,-763.0,0.0002082,2]
[407929027,1772922649285,-150.0,0.0002082,2]
[407929028,1772922649295,-150.0,0.0002082,2]
[407929029,1772922649307,-163.0,0.0002082,2]
[407929030,1772922649318,-555.31,0.00020863,14]
[407929031,1772922649329,-240.59,0.00020863,14]
[407929032,1772922649341,-300.0,0.00020869,3]
[407929033,1772922649351,-489.42,0.0002087,2]
[407929034,1772922649361,-893.0,0.00020883,2]
[407929035,1772922649372,-1382.26055856,0.000209,30]
[407929036,1772922649382,-167.91922764,0.00020917,2]
[407929037,1772922649392,-200.0,0.00020917,2]
[407929038,1772922649402,-893.0,0.00020924,2]
[407929039,1772922649412,-893.0,0.00020927,2]
[407929040,1772922649422,-893.0,0.00020934,2]
[407929041,1772922649434,-150.99,0.00020951,2]
[407929042,1772922649445,-299.99,0.00020951,7]
[407929043,1772922649456,-150.99,0.00020951,2]
[407929044,1772922649467,-9999.99,0.00020951,2]
[407929045,1772922649478,-9999.99,0.00020951,2]
[407929046,1772922649487,-7983.46,0.00020951,2]
[407929047,1772922649499,-5000.0,0.00021,7]
[407929048,1772922649510,-1199.18370562,0.00021,2]
[407929049,1772922649521,-197.93524532,0.00021,2]
[407929050,1772922649532,-212.3,0.00021,2]
[407929051,1772922649543,-1333.33334,0.00021,2]
[407929052,1772922649554,-7800.3268,0.00021,2]
[407929053,1772922649564,-418.0,0.00021009,2]
[407929054,1772922649574,-773.0,0.00021038,2]
[407929055,1772922649584,-173.13,0.00021055,2]
[407929056,1772922649594,-8363.39,0.00021068,2]
[407929057,1772922649608,-2000.0,0.0002108,2]
[407929058,1772922649620,-418.0,0.0002111,2]
[407929059,1772922649630,-489.42,0.0002114,2]
[407929060,1772922649640,-418.0,0.00021176,2]
[407929061,1772922649650,-350.0,0.00021203,2]
[407929062,1772922649660,-350.0,0.0002121,2]
[407929063,1772922649671,-773.0,0.00021271,2]
[407929064,1772922649680,-350.0,0.00021317,2]
[407929065,1772922649690,-773.0,0.00021336,2]
[407929066,1772922649699,-503.0,0.00021345,6]
[407929067,1772922649709,-6414.77,0.0002137,2]
[407929068,1772922649719,-1000.0,0.0002137,7]
[407929069,1772922649729,-2200.0,0.0002137,7]
[407929070,1772922649738,-2200.0,0.0002137,7]
[407929071,1772922649748,-489.42,0.0002141,2]
[407929072,1772922649758,-198.43,0.00021427,2]
[407929073,1772922649768,-1109.0,0.00021457,2]
[407929074,1772922649777,-721.12765535,0.00021464,2]
[407929075,1772922649786,-578.20924308,0.00021464,2]
[407929076,1772922649797,-200.0,0.00021465,2]
[407929077,1772922649806,-223.3094573,0.000215,2]
[407929078,1772922649816,-200.0,0.000215,5]
[407929079,1772922649825,-700.0,0.00021516,3]
[407929080,1772922649834,-489.42,0.0002168,2]
[407929081,1772922649845,-198.43,0.00021713,2]
[407929082,1772922649854,-2570.87,0.00021731,14]
[407929083,1772922649863,-556.93,0.00021731,14]
[407929084,1772922649873,-1542.52,0.00021731,14]
[407929085,1772922649882,-334.16,0.00021731,14]
[407929086,1772922649892,-316.83,0.00021822,2]
[407929087,1772922649901,-155.0,0.00021844,2]
[407929088,1772922649911,-5000.0,0.00021918,2]
[407929089,1772922649921,-151.000006,0.00021918,2]
[407929090,1772922649930,-155.142,0.00021918,2]
[407929091,1772922649940,-500.0,0.00021918,2]
[407929092,1772922649949,-160.40496271,0.00021918,2]
[407929093,1772922649958,-489.42,0.0002195,2]
[407929094,1772922649968,-500.0,0.00021973,2]
[407929095,1772922649978,-155.0,0.00021999,2]
[407929096,1772922649990,-151.0,0.00022,2]
[407929097,1772922649999,-5000.0,0.00022,7]
[407929098,1772922650010,-5000.0,0.00022,7]
[407929099,1772922650019,-164.92,0.00022,2]
[407929100,1772922650028,-160.0,0.00022,2]
[407929101,1772922650038,-1000.0,0.00022,2]
[407929102,1772922650048,-196.03,0.00022,30]
[407929103,1772922650058,-204180.8124933,0.00022005,2]
[407929104,1772922650067,-1000.0,0.00022012,2]
[407929105,1772922650077,-300.0,0.00022013,2]
[407929106,1772922650087,-1600.0,0.00022014,2]
[407929107,1772922650097,-500.0,0.00022028,2]
[407929108,1772922650106,-500.0,0.00022082,2]
[407929109,1772922650116,-497.18709769,0.000221,2]
[407929110,1772922650125,-3734.61,0.00022114,30]
[407929111,1772922650135,-500.0,0.00022137,2]
[407929112,1772922650144,-606.28410942,0.00022192,2]
[407929113,1772922650154,-717.0,0.000222,10]
[407929114,1772922650164,-255.22,0.00022216,14]
[407929115,1772922650173,-489.42,0.0002222,2]
[407929116,1772922650184,-300.0,0.00022228,4]
[407929117,1772922650194,-1000.0,0.00022286,2]
[407929118,1772922650203,-1086.79,0.00022415,2]
[407929119,1772922650213,-703.0,0.0002246,2]
[407929120,1772922650223,-489.42,0.0002249,2]
[407929121,1772922650233,-2900.0,0.000225,15]
[407929122,1772922650244,-328.45038809,0.000225,5]
[407929123,1772922650254,-781.06,0.00022551,2]
[407929124,1772922650267,-1744.0,0.0002256,2]
[407929125,1772922650277,-1109.0,0.00022587,2]
[407929126,1772922650286,-3625.47164254,0.000226,2]
[407929127,1772922650296,-2807.522818,0.0002263,30]
[407929128,1772922650310,-876.76,0.00022658,2]
[407929129,1772922650319,-526.19775948,0.0002271,2]
[407929130,1772922650329,-3008.39,0.0002274,2]
[407929131,1772922650339,-489.42,0.0002276,2]
[407929132,1772922650349,-307.58,0.00022825,2]
[407929133,1772922650358,-1000.0,0.00022834,2]
[407929134,1772922650368,-1901.828208,0.00022894,30]
[407929135,1772922650377,-150.0,0.00022952,2]
[407929136,1772922650387,-1279.0,0.00022952,2]
[407929137,1772922650396,-922.0,0.00022952,2]
[407929138,1772922650406,-1212.0,0.00022952,2]
[407929139,1772922650415,-2460.0,0.00022952,2]
[407929140,1772922650425,-5991.0,0.00022952,2]
[407929141,1772922650435,-1341.0,0.00022952,2]
[407929142,1772922650445,-2000.0,0.00022997,2]
[407929143,1772922650456,-17464.0857524,0.00023,2]
[407929144,1772922650466,-5000.0,0.00023,7]
[407929145,1772922650476,-217.85572029,0.00023,2]
[407929146,1772922650485,-680.83,0.00023,120]
[407929147,1772922650495,-160.0,0.00023,2]
[407929148,1772922650504,-489.42,0.0002303,2]
[407929149,1772922650514,-1000.0,0.00023108,2]
[407929150,1772922650523,-374.51,0.00023117,14]
[407929151,1772922650533,-224.7,0.00023117,14]
[407929152,1772922650542,-810.7810221,0.000232,2]
[407929153,1772922650551,-151.0,0.00023288,2]
[407929154,1772922650561,-151.0,0.00023288,2]
[407929155,1772922650570,-151.0,0.00023288,2]
[407929156,1772922650580,-151.0,0.00023288,2]
[407929157,1772922650589,-175.689768,0.00023288,2]
[407929158,1772922650598,-489.42,0.000233,2]
[407929159,1772922650607,-1999.0,0.00023382,2]
[407929160,1772922650617,-160.40497578,0.00023394,7]
[407929161,1772922650626,-200.0,0.000235,2]
[407929162,1772922650636,-503.0,0.00023517,8]
[407929163,1772922650646,-2935.3844814,0.00023535,2]
[407929164,1772922650655,-1000.0,0.00023562,7]
[407929165,1772922650665,-2200.0,0.00023562,7]
[407929166,1772922650674,-2200.0,0.00023562,7]
[407929167,1772922650684,-489.42,0.0002357,2]
[407929168,1772922650693,-173.13,0.00023687,2]
[407929169,1772922650703,-2000.0,0.000237,2]
[407929170,1772922650712,-1109.0,0.00023776,2]
[407929171,1772922650722,-489.42,0.0002384,2]
[407929172,1772922650731,-480.98,0.00023895,2]
[407929173,1772922650741,-480.98,0.00023895,2]
[407929174,1772922650750,-480.98,0.00023895,2]
[407929175,1772922650759,-484.79467492,0.00023895,2]
[407929176,1772922650769,-8242.4660959,0.00023969,2]
[407929177,1772922650778,-68880.1913786,0.00023969,2]
[407929178,1772922650788,-3600.0,0.00024,2]
[407929179,1772922650797,-1242.46817867,0.00024,2]
[407929180,1772922650807,-172.78723296,0.00024,7]
[407929181,1772922650817,-160.0,0.00024,7]
[407929182,1772922650826,-1600.0,0.00024016,2]
[407929183,1772922650835,-204180.8124933,0.00024016,2]
[407929184,1772922650845,-489.42,0.0002411,2]
[407929185,1772922650854,-358.4,0.00024118,2]
[407929186,1772922650864,-2759.19,0.00024174,2]
[407929187,1772922650874,-9999.99,0.00024174,2]
[407929188,1772922650884,-424.47901195,0.0002421,2]
[407929189,1772922650893,-3719.11059593,0.0002421,2]
[407929190,1772922650903,-1513.97,0.00024235,2]
[407929191,1772922650912,-2804.0,0.00024314,3]
[407929192,1772922650923,-654.9728094,0.00024325,2]
[407929193,1772922650932,-489.42,0.0002438,2]
[407929194,1772922650941,-489.42,0.0002465,2]
[407929195,1772922650951,-2000.0,0.00024657,2]
[407929196,1772922650961,-151.0,0.00024658,2]
[407929197,1772922650970,-1000.0,0.00024658,2]
[407929198,1772922650979,-150.0,0.00024658,2]
[407929199,1772922650989,-151.0,0.00024658,2]
[407929200,1772922650999,-183.568075,0.00024658,2]
[407929201,1772922651009,-570.39,0.00024658,2]
[407929202,1772922651019,-189.0,0.0002474,7]
[407929203,1772922651029,-1839.14278,0.00024856,2]
[407929204,1772922651039,-15369.2481333,0.00024856,2]
[407929205,1772922651049,-31629.423617,0.000249,3]
[407929206,1772922651058,-489.42,0.0002492,2]
[407929207,1772922651068,-1109.0,0.00024964,2]
[407929208,1772922651078,-151.0,0.00025,2]
[407929209,1772922651087,-10000.0,0.00025,7]
[407929210,1772922651097,-540.0,0.00025,2]
[407929211,1772922651106,-613.23132046,0.00025,2]
[407929212,1772922651115,-3056.07779582,0.00025,2]
[407929213,1772922651126,-167.96001629,0.00025,2]
[407929214,1772922651135,-1800.28230748,0.00025,2]
[407929215,1772922651144,-150.0,0.00025,2]
[407929216,1772922651154,-150.0,0.00025,17]
[407929217,1772922651163,-325.0,0.00025,20]
[407929218,1772922651456,-50000.0,0.00025,7]
[407929219,1772922651466,-10035.40941202,0.00025,2]
[407929220,1772922651475,-172.78723296,0.00025,3]
[407929221,1772922651485,-160.0,0.00025,30]
[407929222,1772922651494,-160.0,0.00025,3]
[407929223,1772922651503,-3734.61,0.00025049,30]
[407929224,1772922651513,-480.98,0.00025089,2]
[407929225,1772922651522,-489.42,0.0002519,2]
[407929226,1772922651531,-489.42,0.0002546,2]
[407929227,1772922651541,-155.0,0.00025484,2]
[407929228,1772922651550,-503.0,0.0002569,10]
[407929229,1772922651559,-489.42,0.0002573,2]
[407929230,1772922651568,-1000.0,0.00025754,7]
[407929231,1772922651578,-2200.0,0.00025754,7]
[407929232,1772922651587,-2200.0,0.00025754,7]
[407929233,1772922651596,-350.0,0.0002583,10]
[407929234,1772922651606,-150.0,0.0002589,2]
[407929235,1772922651615,-1279.0,0.00025952,2]
[407929236,1772922651625,-922.0,0.00025952,2]
[407929237,1772922651634,-1212.0,0.00025952,2]
[407929238,1772922651643,-2460.0,0.00025952,2]
[407929239,1772922651653,-5991.0,0.00025952,2]
[407929240,1772922651662,-1341.0,0.00025952,2]
[407929241,1772922651672,-603.30192381,0.0002599,2]
[407929242,1772922651681,-217.35172452,0.00026,2]
[407929243,1772922651690,-212.3,0.00026,2]
[407929244,1772922651700,-150.0,0.00026,20]
[407929245,1772922651710,-1818.06,0.00026,14]
[407929246,1772922651720,-489.5,0.00026,2]
[407929247,1772922651730,-204180.8124933,0.00026028,2]
[407929248,1772922651739,-1109.0,0.00026212,2]
[407929249,1772922651749,-196.03,0.00026213,30]
[407929250,1772922651758,-492.63789498,0.000263,2]
[407929251,1772922651768,-165.0,0.00026507,14]
[407929252,1772922651777,-250.0,0.00027,2]
[407929253,1772922651786,-1038.91078794,0.00027,2]
[407929254,1772922651795,-530.0,0.00027,2]
[407929255,1772922651804,-150.0,0.00027,23]
[407929256,1772922651814,-2000.0,0.00027,2]
[407929257,1772922651823,-1623.0,0.00027,2]
[407929258,1772922651833,-2505.908222,0.0002701,2]
[407929259,1772922651842,-150.0,0.00027185,2]
[407929260,1772922651851,-150.0,0.00027369,2]
[407929261,1772922651860,-2000.0,0.00027397,12]
[407929262,1772922651870,-1000.0,0.00027397,20]
[407929263,1772922651879,-521.89,0.00027397,2]
[407929264,1772922651888,-300.0,0.00027397,2]
[407929265,1772922651897,-1453.34,0.00027397,2]
[407929266,1772922651907,-2323.020337,0.00027397,2]
[407929267,1772922651916,-2323.020337,0.00027397,2]
[407929268,1772922651925,-2323.020337,0.00027397,2]
[407929269,1772922651935,-2323.020337,0.00027397,2]
[407929270,1772922651944,-2323.020337,0.00027397,2]
[407929271,1772922651953,-2323.020337,0.00027397,2]
[407929272,1772922651963,-2323.020337,0.00027397,2]
[407929273,1772922651972,-2323.020337,0.00027397,2]
[407929274,1772922651981,-2323.020337,0.00027397,2]
[407929275,1772922651991,-2323.020337,0.00027397,2]
[407929276,1772922652000,-2323.020337,0.00027397,2]
[407929277,1772922652010,-2323.020337,0.00027397,2]
[407929278,1772922652019,-2323.020337,0.00027397,2]
[407929279,1772922652029,-2323.020337,0.00027397,2]
[407929280,1772922652038,-2323.020337,0.00027397,2]
[407929281,1772922652047,-2323.020337,0.00027397,2]
[407929282,1772922652056,-2323.020337,0.00027397,2]
[407929283,1772922652065,-2323.020337,0.00027397,2]
[407929284,1772922652075,-2323.020337,0.00027397,2]
[407929285,1772922652084,-2323.020335,0.00027397,2]
[407929286,1772922652093,-1483.703154,0.00027397,2]
[407929287,1772922652102,-1483.703154,0.00027397,2]
[407929288,1772922652111,-1483.703154,0.00027397,2]
[407929289,1772922652120,-1483.703154,0.00027397,2]
[407929290,1772922652129,-1483.703154,0.00027397,2]
[407929291,1772922652138,-1483.703154,0.00027397,2]
[407929292,1772922652147,-1483.703154,0.00027397,2]
[407929293,1772922652156,-1483.703154,0.00027397,2]
[407929294,1772922652165,-1483.703154,0.00027397,2]
[407929295,1772922652174,-1483.703154,0.00027397,2]
[407929296,1772922652183,-1483.703154,0.00027397,2]
[407929297,1772922652193,-1483.703154,0.00027397,2]
[407929298,1772922652203,-1483.703154,0.00027397,2]
[407929299,1772922652212,-1483.703154,0.00027397,2]
[407929300,1772922652221,-1483.703154,0.00027397,2]
[407929301,1772922652230,-1483.703154,0.00027397,2]
[407929302,1772922652239,-1483.703154,0.00027397,2]
[407929303,1772922652248,-1483.703154,0.00027397,2]
[407929304,1772922652264,-1483.703154,0.00027397,2]
[407929305,1772922652276,-1483.703161,0.00027397,2]
[407929306,1772922652285,-570.39,0.00027397,2]
[407929307,1772922652294,-602.57,0.000274,7]
[407929308,1772922652305,-4774.43,0.000274,7]
[407929309,1772922652314,-2000.0,0.000274,2]
[407929310,1772922652323,-552.2853773,0.000275,2]
[407929311,1772922652332,-1109.0,0.00027523,5]
[407929312,1772922652342,-500.0,0.00027562,2]
[407929313,1772922652351,-503.0,0.00027862,12]
[407929314,1772922652360,-1000.0,0.00027946,14]
[407929315,1772922652370,-2200.0,0.00027946,14]
[407929316,1772922652379,-2200.0,0.00027946,14]
[407929317,1772922652388,-3734.61,0.00027984,30]
[407929318,1772922652397,-936.59,0.00028,30]
[407929319,1772922652407,-151.0,0.00028,2]
[407929320,1772922652416,-10000.0,0.00028,7]
[407929321,1772922652426,-160.0,0.00028,2]
[407929322,1772922652435,-150.0,0.00028,26]
[407929323,1772922652445,-181.07916474,0.00028,30]
[407929324,1772922652454,-151.5,0.00028143,2]
[407929325,1772922652463,-2561.23399,0.000285,2]
[407929326,1772922652473,-150.0,0.00028544,2]
[407929327,1772922652483,-257.0,0.00028767,2]
[407929328,1772922652493,-1109.0,0.00028899,5]
[407929329,1772922652503,-23011.60949671,0.000289,4]
[407929330,1772922652512,-1279.0,0.00028952,2]
[407929331,1772922652521,-922.0,0.00028952,2]
[407929332,1772922652531,-1212.0,0.00028952,2]
[407929333,1772922652541,-2460.0,0.00028952,2]
[407929334,1772922652551,-1277.512,0.00028952,2]
[407929335,1772922652561,-1341.0,0.00028952,2]
[407929336,1772922652571,-1748.1057613,0.00029,2]
[407929337,1772922652581,-504.81904911,0.00029,2]
[407929338,1772922652591,-150.0,0.00029,29]
[407929339,1772922652601,-1500.0,0.00029,2]
[407929340,1772922652610,-811.0,0.00029,2]
[407929341,1772922652619,-151.5,0.00029284,2]
[407929342,1772922652629,-1500.0,0.000295,2]
[407929343,1772922652638,-1000.0,0.0002959,14]
[407929344,1772922652648,-2200.0,0.0002959,14]
[407929345,1772922652657,-2200.0,0.0002959,14]
[407929346,1772922652667,-150.0,0.00029971,2]
[407929347,1772922652677,-238.56906301,0.0002999,2]
[407929348,1772922652686,-602.57,0.0003,7]
[407929349,1772922652696,-4774.43,0.0003,7]
[407929350,1772922652705,-95142.53638851,0.0003,3]
[407929351,1772922652715,-804.79865553,0.0003,7]
[407929352,1772922652725,-151.0,0.0003,2]
[407929353,1772922652735,-10000.0,0.0003,7]
[407929354,1772922652745,-321.11663749,0.0003,2]
[407929355,1772922652755,-1828.02617169,0.0003,2]
[407929356,1772922652764,-163.9616937,0.0003,2]
[407929357,1772922652774,-357.32152552,0.0003,15]
[407929358,1772922652783,-6583.61,0.0003,3]
[407929359,1772922652793,-150.0,0.0003,2]
[407929360,1772922652803,-150.0,0.0003,32]
[407929361,1772922652812,-1000.0,0.0003,2]
[407929362,1772922652822,-2000.0,0.0003,3]
[407929363,1772922652831,-579.1763735,0.0003,4]
[407929364,1772922652840,-200.0,0.0003,11]
[407929365,1772922652849,-200.0,0.0003,11]
[407929366,1772922652858,-200.0,0.0003,11]
[407929367,1772922652868,-200.0,0.0003,11]
[407929368,1772922652877,-305.28,0.0003,11]
[407929369,1772922652886,-150.0,0.0003,2]
[407929370,1772922652895,-190.64,0.0003,22]
[407929371,1772922652904,-1500.0,0.0003,2]
[407929372,1772922652914,-503.0,0.00030034,14]
[407929373,1772922652925,-1079.87485346,0.0003013,2]
[407929374,1772922652935,-637.72383222,0.0003013,2]
[407929375,1772922652945,-202.87584239,0.0003013,2]
[407929376,1772922652954,-2000.0,0.00030136,22]
[407929377,1772922652963,-151.0,0.00030137,7]
[407929378,1772922652973,-151.0,0.00030137,7]
[407929379,1772922652983,-151.0,0.00030137,7]
[407929380,1772922652992,-151.0,0.00030137,7]
[407929381,1772922653001,-151.0,0.00030137,7]
[407929382,1772922653012,-151.0,0.00030137,7]
[407929383,1772922653022,-151.0,0.00030137,7]
[407929384,1772922653032,-151.0,0.00030137,7]
[407929385,1772922653043,-151.0,0.00030137,7]
[407929386,1772922653054,-151.0,0.00030137,7]
[407929387,1772922653063,-151.0,0.00030137,7]
[407929388,1772922653072,-151.0,0.00030137,7]
[407929389,1772922653081,-151.0,0.00030137,7]
[407929390,1772922653091,-151.0,0.00030137,7]
[407929391,1772922653100,-236.443934,0.00030137,7]
[407929392,1772922653109,-570.39,0.00030137,2]
[407929393,1772922653118,-6550.886577,0.00030174,30]
[407929394,1772922653131,-1109.0,0.00030344,5]
[407929395,1772922653142,-354.48865315,0.00030423,2]
[407929396,1772922653151,-196.03,0.00030426,60]
[407929397,1772922653162,-4437.599152,0.00030525,30]
[407929398,1772922653172,-502.0,0.0003063,2]
[407929399,1772922653183,-151.5,0.00030649,2]
[407929400,1772922653192,-151.5,0.00030663,2]
[407929401,1772922653205,-1618.21818672,0.0003084,2]
[407929402,1772922653215,-151.5,0.00030842,2]
[407929403,1772922653227,-152.0,0.00030886,3]